bitfinex-derivatives/quotes_SOLF0:USTF0_20260211
["timestamp","ask_amount","ask_price","bid_price","bid_amount"]
[1770809013452,2.82416859,81.25,81.191,3.91606584]
[1770809013657,2.82416859,81.25,81.201,3.91606584]
[1770809013850,3.96133553,81.249,81.19,2.82416859]
[1770809014054,3.96133553,81.239,81.191,3.91606584]
[1770809014652,7.777e-05,81.252,81.201,3.91606584]
[1770809014854,7.777e-05,81.252,81.231,3.91606584]
[1770809018361,7.777e-05,81.252,81.22,2.82416859]
[1770809018563,7.777e-05,81.252,81.218,3.91606584]
[1770809018863,2.82416859,81.25,81.218,3.91606584]
[1770809020356,7.777e-05,81.252,81.218,3.91606584]
[1770809020957,7.777e-05,81.252,81.22,3.91606584]
[1770809022554,7.777e-05,81.252,81.201,3.91606584]
[1770809022869,7.777e-05,81.252,81.211,3.91606584]
[1770809023561,7.777e-05,81.252,81.221,3.91606584]
[1770809025770,7.777e-05,81.252,81.23,2.82416859]
[1770809026068,7.777e-05,81.252,81.221,3.91606584]
[1770809031872,7.777e-05,81.252,81.23,6.68633641]
[1770809032068,7.777e-05,81.252,81.23,3.86216782]
[1770809032463,7.777e-05,81.252,81.22,2.82416859]
[1770809032770,7.777e-05,81.252,81.218,3.86216782]
[1770809033466,4.07107084,81.249,81.2,2.82416859]
[1770809033770,7.777e-05,81.252,81.192,3.86216782]
[1770809033771,4.07107084,81.239,81.192,3.86216782]
[1770809034165,2.82416859,81.24,81.155,135.3]
[1770809034166,7.777e-05,81.252,81.201,3.86216782]
[1770809034370,6.89523943,81.25,81.201,3.86216782]
[1770809036169,4.07107084,81.25,81.201,3.86216782]
[1770809037970,7.777e-05,81.252,81.211,3.86216782]
[1770809038169,7.777e-05,81.252,81.22,2.82219893]
[1770809038366,7.777e-05,81.252,81.22,6.68436675]
[1770809038567,7.777e-05,81.252,81.221,3.86216782]
[1770809040967,4.07107084,81.249,81.201,3.86216782]
[1770809041464,4.07107084,81.239,81.187,3.86216782]
[1770809041671,4.07107084,81.229,81.156,3.86216782]
[1770809041965,2.82219893,81.22,81.171,3.86216782]
[1770809042565,4.07107084,81.229,81.18,2.82219893]
[1770809042972,4.07107084,81.229,81.171,3.86216782]
[1770809043271,2.82219893,81.21,81.171,3.86216782]
[1770809044067,4.07107084,81.219,81.171,3.86216782]
[1770809044470,4.07107084,81.209,81.16,2.82219893]
[1770809044664,4.07107084,81.209,81.16,6.68436675]
[1770809044864,4.07107084,81.209,81.161,3.86216782]
[1770809049476,4.07107084,81.199,81.151,3.86216782]
[1770809049877,4.07107084,81.189,81.151,3.86216782]
[1770809051273,4.07107084,81.189,81.141,3.86216782]
[1770809051879,2.82219893,81.19,81.141,3.86216782]
[1770809052076,2.82219893,81.2,81.151,3.86216782]
[1770809052476,6.89326977,81.2,81.151,3.86216782]
[1770809053578,4.07107084,81.2,81.151,3.86216782]
[1770809055180,4.07107084,81.217,81.151,3.86216782]
[1770809055387,4.07107084,81.229,81.171,3.86216782]
[1770809055889,4.07107084,81.229,81.181,3.86216782]
[1770809056686,4.07107084,81.247,81.191,3.86216782]
[1770809057084,2.82219893,81.24,81.191,3.86216782]
[1770809057284,2.82219893,81.23,81.191,3.86216782]
[1770809057591,4.07107084,81.219,81.177,3.86216782]
[1770809058178,2.82219893,81.23,81.18,2.82219893]
[1770809058486,7.777e-05,81.252,81.143,98.3]
[1770809058487,2.82219893,81.24,81.191,3.86216782]
[1770809063182,7.777e-05,81.252,81.211,3.93670191]
[1770809063988,3.83599765,81.249,81.211,3.93670191]
[1770809064288,3.83599765,81.249,81.2,2.82219893]
[1770809064480,7.777e-05,81.252,81.195,3.93670191]
[1770809064686,2.82219893,81.24,81.195,3.93670191]
[1770809065689,6.5881269,81.24,81.195,3.93670191]
[1770809066098,7.777e-05,81.252,81.221,3.75056376]
[1770809066490,11.44677524,81.324,81.184,98.28]
[1770809066491,2.82219893,81.32,81.241,3.75056376]
[1770809066690,3.76592797,81.319,81.261,3.75056376]
[1770809067391,2.82219893,81.31,81.261,3.75056376]
[1770809067588,6.5881269,81.31,81.261,3.75056376]
[1770809067991,2.82219893,81.32,81.261,3.75056376]
[1770809068297,3.76592797,81.319,81.261,3.75056376]
[1770809071494,3.76592797,81.319,81.241,3.75056376]
[1770809072594,3.76592797,81.299,81.221,3.75056376]
[1770809072795,3.76592797,81.297,81.221,3.75056376]
[1770809080293,3.76592797,81.319,81.221,3.75056376]
[1770809080498,3.76592797,81.319,81.222,3.75056376]
[1770809080698,3.76592797,81.319,81.221,36.96]
[1770809080699,3.76592797,81.319,81.241,3.75056376]
[1770809081707,3.76592797,81.309,81.241,3.75056376]
[1770809085307,3.76592797,81.307,81.241,3.75056376]
[1770809088914,3.76592797,81.307,81.26,2.8182355]
[1770809089216,3.76592797,81.307,81.26,6.56879926]
[1770809089413,3.76592797,81.307,81.261,3.75056376]
[1770809093615,3.87662126,81.299,81.25,2.8182355]
[1770809093805,3.87662126,81.299,81.248,3.97807615]
[1770809094411,3.87662126,81.299,81.25,2.81923447]
[1770809095514,3.87662126,81.299,81.248,3.97807615]
[1770809095710,3.87662126,81.289,81.248,3.97807615]
[1770809096221,3.87662126,81.269,81.22,6.79731062]
[1770809096813,3.87662126,81.269,81.221,3.97807615]
[1770809097013,2.81923447,81.28,81.221,3.97807615]
[1770809097221,6.69585573,81.28,81.221,3.97807615]
[1770809097417,6.69585573,81.28,81.231,3.97807615]
[1770809097720,3.87662126,81.28,81.231,3.97807615]
[1770809100111,3.87662126,81.293,81.241,3.97807615]
[1770809100417,2.81990717,81.29,81.241,3.97807615]
[1770809100617,3.87662126,81.293,81.25,6.79798332]
[1770809100812,3.87662126,81.293,81.251,3.97807615]
[1770809102024,3.87662126,81.289,81.241,3.97807615]
[1770809102219,3.87662126,81.279,81.23,2.81990717]
[1770809102418,3.87662126,81.279,81.231,3.97807615]
[1770809103210,3.87662126,81.269,81.22,2.81990717]
[1770809103410,3.87662126,81.269,81.221,3.97807615]
[1770809103925,3.87662126,81.269,81.23,2.81990717]
[1770809104217,3.87662126,81.269,81.23,6.79798332]
[1770809105214,3.87662126,81.279,81.231,3.97807615]
[1770809105620,3.87662126,81.292,81.241,3.97807615]
[1770809106119,98.2,81.305,81.241,3.97807615]
[1770809106326,3.87662126,81.306,81.261,3.97807615]
[1770809107422,2.81990717,81.3,81.261,3.97807615]
[1770809108319,3.87662126,81.299,81.25,2.81990717]
[1770809108523,3.87662126,81.299,81.251,3.97807615]
[1770809110430,6.69652843,81.31,81.26,6.79798332]
[1770809110722,3.87662126,81.309,81.26,6.79798332]
[1770809113421,3.87662126,81.309,81.261,3.97807615]
[1770809113717,2.81990717,81.32,81.271,3.97807615]
[1770809114622,3.87662126,81.322,81.281,3.97807615]
[1770809115418,98.2,81.331,81.281,3.97807615]
[1770809115619,3.87662126,81.344,81.291,3.97807615]
[1770809115820,3.87662126,81.367,81.321,3.97807615]
[1770809116022,3.87662126,81.367,81.33,2.81990717]
[1770809116218,2.81990717,81.38,81.33,2.81990717]
[1770809116625,8.89112799,81.392,81.321,3.97807615]
[1770809116626,2.81990717,81.37,81.321,3.97807615]
[1770809117019,8.89112799,81.392,81.3,2.81990717]
[1770809117020,2.81990717,81.35,81.3,2.81990717]
[1770809117227,2.81990717,81.35,81.301,3.97807615]
[1770809117428,2.81990717,81.36,81.31,2.81990717]
[1770809117628,2.81990717,81.36,81.301,3.97807615]
[1770809118229,2.81990717,81.35,81.301,3.97807615]
[1770809118426,3.44899578,81.339,81.29,2.81990717]
[1770809118630,3.44899578,81.368,81.311,3.97807615]
[1770809118929,8.86142611,81.413,81.251,98.18]
[1770809118930,2.81990717,81.35,81.301,3.97807615]
[1770809119134,3.44899578,81.349,81.301,3.97807615]
[1770809119627,2.81990717,81.33,81.281,3.97807615]
[1770809120427,2.81990717,81.32,81.281,3.97807615]
[1770809120832,3.33546984,81.329,81.281,3.97807615]
[1770809121028,2.81990717,81.32,81.281,3.97807615]
[1770809122035,3.33546984,81.329,81.281,3.97807615]
[1770809123024,103.28,81.337,81.281,3.97807615]
[1770809123224,3.33628341,81.337,81.281,3.97807615]
[1770809123537,3.33628341,81.309,81.267,3.7237131]
[1770809125835,3.33153198,81.279,81.22,2.81990717]
[1770809126034,3.33153198,81.279,81.221,3.74002446]
[1770809126239,98.16,81.288,81.241,3.74002446]
[1770809126831,2.81990717,81.29,81.241,3.74002446]
[1770809127430,6.13824916,81.29,81.241,3.74002446]
[1770809128334,2.81990717,81.28,81.241,3.74002446]
[1770809129235,2.81990717,81.26,81.221,3.74002446]
[1770809129424,2.81990717,81.26,81.201,3.74002446]
[1770809131033,11.44677524,81.32,81.186,3.74002446]
[1770809131034,3.43790803,81.258,81.186,3.74002446]
[1770809131235,3.43790803,81.249,81.186,3.74002446]
[1770809131435,3.43790803,81.247,81.186,3.74002446]
[1770809132246,3.43790803,81.247,81.15,7.559737]
[1770809132441,3.43790803,81.247,81.151,3.74002446]
[1770809132634,3.39719473,81.245,81.151,3.74002446]
[1770809133435,3.39719473,81.243,81.151,3.74002446]
[1770809134236,3.43359146,81.229,81.151,3.74002446]
[1770809141961,3.5171335,81.227,81.151,3.74002446]
[1770809143464,7.559737,81.23,81.151,3.74002446]
[1770809143465,3.5171335,81.225,81.151,3.74002446]
[1770809145459,3.50162265,81.223,81.151,3.74002446]
[1770809145861,3.50162265,81.238,81.171,3.74002446]
[1770809147163,3.50483065,81.236,81.171,3.74002446]
[1770809147369,3.50483065,81.236,81.132,3.74002446]
[1770809147565,36.96,81.296,81.132,3.74002446]
[1770809147566,3.50483065,81.229,81.132,3.74002446]
[1770809147869,3.50483065,81.227,81.132,3.74002446]
[1770809148161,3.49531864,81.225,81.132,3.74002446]
[1770809150971,3.50201326,81.209,81.151,4.08095245]
[1770809151168,3.50201326,81.209,81.16,2.82548572]
[1770809152362,3.50201326,81.209,81.151,4.08095245]
[1770809152561,2.82548572,81.2,81.151,4.08095245]
[1770809153268,3.49964844,81.179,81.124,4.08095245]
[1770809153470,3.49964844,81.179,81.131,4.08095245]
[1770809154166,3.46851299,81.169,81.12,6.90643817]
[1770809154361,3.46851299,81.169,81.121,4.08095245]
[1770809154669,3.46851299,81.189,81.131,4.08095245]
[1770809155061,2.82548572,81.18,81.131,4.08095245]
[1770809155463,3.46851299,81.189,81.15,2.82548572]
[1770809155669,8.77491068,81.257,81.15,2.82548572]
[1770809155670,2.82548572,81.2,81.15,6.90643817]
[1770809155860,3.46851299,81.199,81.15,6.90643817]
[1770809158272,2.82548572,81.19,81.15,6.90643817]
[1770809158473,3.46851299,81.199,81.15,6.90643817]
[1770809158972,3.46851299,81.199,81.15,6.90700252]
[1770809159575,3.46851299,81.199,81.151,4.08095245]
[1770809160172,3.30871769,81.212,81.151,4.08095245]
[1770809160367,3.30871769,81.212,81.161,4.08095245]
[1770809160368,2.82605007,81.21,81.161,4.08095245]
[1770809160565,3.30871769,81.209,81.161,4.08095245]
[1770809161177,3.30871769,81.199,81.15,2.82605007]
[1770809161371,3.30871769,81.199,81.151,4.08095245]
[1770809161868,3.36779359,81.189,81.14,2.82605007]
[1770809162275,3.36779359,81.189,81.141,4.08095245]
[1770809163877,2.82605007,81.2,81.151,4.08095245]
[1770809164272,3.36779359,81.203,81.16,2.82605007]
[1770809164675,3.36779359,81.203,81.151,4.08095245]
[1770809164873,2.82605007,81.2,81.151,4.08095245]
[1770809165074,3.36142799,81.199,81.151,4.08095245]
[1770809165671,3.36142799,81.199,81.14,2.82605007]
[1770809165873,2.82605007,81.17,81.121,4.08095245]
[1770809166079,3.36142799,81.179,81.131,4.08095245]
[1770809166377,3.29208862,81.189,81.141,4.08095245]
[1770809167177,3.29208862,81.189,81.15,2.82605007]
[1770809169772,3.29208862,81.189,81.141,4.08095245]
[1770809169983,2.82605007,81.18,81.141,4.08095245]
[1770809170477,3.29208862,81.189,81.141,4.08095245]
[1770809171184,3.29208862,81.189,81.15,2.82605007]
[1770809171485,3.29208862,81.189,81.141,4.08095245]
[1770809175191,2.82605007,81.18,81.141,4.08095245]
[1770809175986,3.09041867,81.179,81.124,4.08095245]
[1770809176286,3.09041867,81.179,81.131,4.08095245]
[1770809176881,3.09041867,81.179,81.14,2.82605007]
[1770809177489,3.09041867,81.179,81.131,4.08095245]
[1770809178790,3.07717432,81.192,81.151,4.08095245]
[1770809180078,5.91346002,81.19,81.151,4.08095245]
[1770809180788,3.08652462,81.189,81.141,4.11874317]
[1770809180988,2.82605007,81.18,81.141,4.11874317]
[1770809183185,3.08652462,81.189,81.141,4.11874317]
[1770809183685,5.88392431,81.18,81.141,4.11874317]
[1770809184193,3.06223146,81.179,81.141,4.11874317]
[1770809191491,23.01706439,81.257,81.141,4.11874317]
[1770809191699,62.58772328,81.369,81.25,2.82605007]
[1770809191991,62.58772328,81.369,81.184,81.5]
[1770809191992,62.58703045,81.329,81.27,2.82605007]
[1770809192194,62.58703045,81.329,81.286,11.30262754]
[1770809192195,56.43537855,81.329,81.286,11.30262754]
[1770809192397,56.43537855,81.329,81.287,12.33138809]
[1770809192398,47.20790111,81.329,81.287,12.33138809]
[1770809192595,47.20790111,81.329,81.288,12.33138809]
[1770809192796,246.42,81.423,81.31,2.82605007]
[1770809192997,7.53785611,81.39,81.311,12.33138809]
[1770809193302,98.32,81.389,81.312,12.33138809]
[1770809193598,98.32,81.389,81.313,12.33138809]
[1770809193800,98.32,81.389,81.314,12.33138809]
[1770809193997,7.53785611,81.39,81.315,12.33138809]
[1770809194202,7.53785611,81.39,81.3,18.84048365]
[1770809194495,55.16709586,81.388,81.3,7.53785611]
[1770809194995,55.16709586,81.386,81.3,7.53785611]
[1770809195500,55.16709586,81.386,81.28,7.53785611]
[1770809196295,54.9014693,81.384,81.28,7.53785611]
[1770809197696,7.53785611,81.37,81.28,7.53785611]
[1770809197894,54.88757392,81.368,81.26,7.53785611]
[1770809198102,54.88757392,81.368,81.18,7.53785611]
[1770809198103,54.88757392,81.349,81.24,7.53785611]
[1770809198306,54.88757392,81.329,81.24,7.53785611]
[1770809199304,54.88757392,81.327,81.24,7.53785611]
[1770809199696,54.88757392,81.325,81.24,7.53785611]
[1770809200203,55.14810532,81.323,81.24,7.53785611]
[1770809201801,55.14914512,81.321,81.24,7.53785611]
[1770809202306,144.2,81.32,81.26,7.53785611]
[1770809202500,55.14914512,81.321,81.26,7.53785611]
[1770809202702,55.14914512,81.318,81.26,7.53785611]
[1770809205401,145.02,81.317,81.26,7.53785611]
[1770809205603,145.02,81.316,81.26,7.53785611]
[1770809206005,145.2,81.315,81.26,7.53785611]
[1770809207709,55.12638851,81.334,81.26,7.53785611]
[1770809207906,55.13164322,81.332,81.26,7.53785611]
[1770809212108,55.06283018,81.33,81.26,7.53785611]
[1770809212706,55.06283018,81.328,81.26,7.53785611]
[1770809213808,55.06283018,81.328,81.217,15.07017006]
[1770809213809,55.06283018,81.359,81.28,7.53785611]
[1770809214010,55.04989,81.357,81.28,7.53785611]
[1770809214714,55.04989,81.355,81.28,7.53999296]
[1770809215312,55.04989,81.353,81.28,7.53999296]
[1770809216410,55.06790663,81.351,81.28,7.53999296]
[1770809217213,55.06790663,81.351,81.26,7.53999296]
[1770809217810,147.16,81.35,81.26,7.53999296]
[1770809218011,55.06013435,81.339,81.26,7.53999296]
[1770809218219,55.06013435,81.337,81.24,7.53999296]
[1770809218906,55.06013435,81.337,81.25,7.54509951]
[1770809219110,55.06013435,81.335,81.25,7.54509951]
[1770809220519,55.027737,81.333,81.25,7.54509951]
[1770809221020,55.027737,81.331,81.25,7.54509951]
[1770809224814,55.02023787,81.329,81.25,7.54509951]
[1770809225518,55.02023787,81.327,81.25,7.54509951]
[1770809226121,55.03531911,81.325,81.25,7.54509951]
[1770809226922,147.72,81.324,81.25,7.54509951]
[1770809227220,55.03531911,81.323,81.25,7.54509951]
[1770809229517,0.0776174,81.295,81.25,7.54509951]
[1770809229723,55.11801921,81.295,81.247,11.30262754]
[1770809230028,55.11801921,81.295,81.24,7.54509951]
[1770809230418,55.11801921,81.295,81.24,18.84772705]
[1770809230622,55.04040181,81.295,81.24,18.84772705]
[1770809231126,55.04545736,81.293,81.241,11.30262754]
[1770809231327,55.04545736,81.293,81.24,7.54509951]
[1770809231328,148.02,81.292,81.245,11.14447093]
[1770809231823,55.04545736,81.29,81.241,11.14447093]
[1770809232128,55.11797219,81.288,81.242,11.14447093]
[1770809232327,98.16,81.287,81.246,11.14447093]
[1770809232921,148.34,81.286,81.246,11.14447093]
[1770809233121,148.34,81.286,81.247,11.14447093]
[1770809233321,148.34,81.286,81.24,7.54509951]
[1770809233322,148.34,81.286,81.253,11.14447093]
[1770809233725,0.07761556,81.271,81.253,11.14447093]
[1770809233931,0.07761556,81.271,81.256,11.14447093]
[1770809234123,0.07761556,81.271,81.257,11.14447093]
[1770809234329,148.34,81.286,81.263,11.14447093]
[1770809234926,55.11797219,81.288,81.263,11.14447093]
[1770809235233,148.9,81.287,81.264,11.14447093]
[1770809235424,148.9,81.287,81.272,11.14447093]
[1770809236129,148.9,81.287,81.272,7.18870337]
[1770809236330,148.9,81.287,81.264,23.04189303]
[1770809236525,148.9,81.287,81.262,23.04189303]
[1770809238029,149.76,81.286,81.261,23.04189303]
[1770809238229,149.76,81.286,81.262,23.04189303]
[1770809238829,55.11797219,81.288,81.262,23.04189303]
[1770809239030,150.02,81.285,81.262,23.04189303]
[1770809239225,150.02,81.285,81.263,23.04189303]
[1770809240342,150.02,81.285,81.264,23.04189303]
[1770809241236,150.02,81.285,81.265,23.04189303]
[1770809243746,55.11797219,81.288,81.265,23.04189303]
[1770809243942,98.16,81.287,81.265,23.04189303]
[1770809247148,47.74355973,81.286,81.265,23.04189303]
[1770809247349,47.74355973,81.286,81.264,23.04189303]
[1770809248349,146.28,81.285,81.264,23.04189303]
[1770809249136,146.28,81.285,81.263,23.04189303]
[1770809249946,47.70448519,81.299,81.263,23.04189303]
[1770809250138,47.70448519,81.349,81.29,2.81792044]
[1770809250343,47.70448519,81.329,81.28,2.81792044]
[1770809250643,36.18353868,81.327,81.257,29.60741422]
[1770809250847,36.18353868,81.319,81.27,2.81792044]
[1770809251445,36.18353868,81.319,81.249,29.60741422]
[1770809251643,36.18353868,81.319,81.26,2.81792044]
[1770809252242,36.27190235,81.309,81.25,2.81792044]
[1770809252546,36.27190235,81.299,81.25,2.81792044]
[1770809253252,111.5,81.298,81.25,2.81792044]
[1770809253446,36.27190235,81.297,81.25,2.81792044]
[1770809253646,149.08,81.296,81.25,2.81792044]
[1770809253952,36.27190235,81.295,81.25,2.81792044]
[1770809254146,36.27190235,81.295,81.265,0.07811561]
[1770809254946,36.27190235,81.295,81.25,2.81792044]
[1770809255248,36.24646645,81.289,81.25,2.81792044]
[1770809255549,36.24646645,81.289,81.24,2.81792044]
[1770809255747,36.24646645,81.287,81.24,2.81792044]
[1770809255941,36.25021578,81.285,81.25,2.81792044]
[1770809256541,36.25021578,81.283,81.25,2.81792044]
[1770809256739,189.81021578,81.282,81.25,2.81792044]
[1770809256938,36.25021578,81.281,81.25,2.81792044]
[1770809257654,153.78,81.28,81.25,2.81792044]
[1770809257845,36.25021578,81.28,81.25,2.81792044]
[1770809258045,98.16,81.279,81.25,2.81792044]
[1770809258352,36.28278189,81.277,81.24,2.81792044]
[1770809259148,0.07837721,81.267,81.24,2.81792044]
[1770809259645,154.22,81.266,81.24,2.81792044]
[1770809259850,154.26,81.265,81.24,2.81792044]
[1770809260047,36.27835404,81.264,81.23,32.42533466]
[1770809260356,98.18,81.263,81.23,2.81792044]
[1770809260544,36.27835404,81.262,81.23,2.81792044]
[1770809261047,36.27835404,81.262,81.24,2.81792044]
[1770809263156,36.30315274,81.309,81.25,2.81792044]
[1770809263344,36.30315274,81.307,81.26,2.81792044]
[1770809263745,36.30315274,81.307,81.25,2.81792044]
[1770809264151,36.30315274,81.307,81.243,29.60741422]
[1770809264351,36.30859211,81.289,81.25,2.81792044]
[1770809264554,36.30859211,81.287,81.26,2.81792044]
[1770809264753,98.18,81.286,81.26,2.81792044]
[1770809265052,36.30859211,81.285,81.25,2.81792044]
[1770809265256,135.94,81.284,81.25,2.81792044]
[1770809265453,172.24859211,81.284,81.25,2.81792044]
[1770809265751,36.30859211,81.283,81.25,2.81792044]
[1770809267056,0.07837031,81.275,81.25,2.81792044]
[1770809268457,28.76618522,81.275,81.24,2.81792044]
[1770809270561,28.76618522,81.275,81.253,22.61533133]
[1770809273162,28.76618522,81.275,81.254,22.61533133]
[1770809274159,28.76618522,81.275,81.255,22.61533133]
[1770809276069,18.95418523,81.275,81.264,22.61533133]
[1770809276362,18.95418523,81.275,81.265,22.61533133]
[1770809276563,2.81792044,81.33,81.27,2.81792044]
[1770809276767,98.18,81.329,81.285,22.61533133]
[1770809276972,98.18,81.328,81.29,2.81792044]
[1770809278064,23.83013016,81.327,81.29,2.81792044]
[1770809278374,23.83013016,81.339,81.31,2.81792044]
[1770809278670,23.83013016,81.339,81.32,2.81792044]
[1770809278871,23.83013016,81.339,81.315,22.61533133]
[1770809279165,23.83013016,81.339,81.311,22.61533133]
[1770809279363,23.83013016,81.339,81.319,0.07796045]
[1770809280162,23.83013016,81.339,81.285,29.60741422]
[1770809280469,12.44740543,81.329,81.29,2.81792044]
[1770809280669,12.44740543,81.329,81.28,2.81792044]
[1770809280865,12.44740543,81.329,81.28,2.8162342]
[1770809284066,12.44740543,81.329,81.29,2.8162342]
[1770809285071,12.17925466,81.341,81.3,2.8162342]
[1770809287574,12.17925466,81.341,81.31,2.8162342]
[1770809288670,2.8162342,81.36,81.31,2.8162342]
[1770809288872,12.07664429,81.359,81.32,2.8162342]
[1770809289266,12.07664429,81.359,81.283,36.96]
[1770809289462,12.07664429,81.359,81.282,29.60741422]
[1770809289463,12.07664429,81.359,81.33,2.8162342]
[1770809289870,12.07664429,81.359,81.32,2.8162342]
[1770809291273,12.07664429,81.359,81.33,2.8162342]
[1770809291773,12.07664429,81.359,81.295,98.14]
[1770809291969,12.07664429,81.359,81.33,2.8162342]
[1770809292572,11.98507575,81.379,81.34,2.8162342]
[1770809292766,11.98507575,81.379,81.35,2.8162342]
[1770809292973,11.98507575,81.409,81.36,2.8162342]
[1770809293279,11.98507575,81.409,81.37,2.8162342]
[1770809293466,11.98507575,81.409,81.32,98.12]
[1770809293666,11.98507575,81.409,81.36,2.8162342]
[1770809294779,11.98899204,81.449,81.4,2.8162342]
[1770809295676,11.98899204,81.439,81.39,2.8162342]
[1770809295882,11.98899204,81.429,81.38,2.8162342]
[1770809298071,11.98899204,81.429,81.39,2.8162342]
[1770809298481,0.07790449,81.413,81.4,2.8162342]
[1770809300782,0.07790449,81.413,81.354,109.21738513]
[1770809300979,0.07790449,81.413,81.39,2.8162342]
[1770809301171,11.98899204,81.429,81.4,2.8162342]
[1770809301376,11.99679901,81.458,81.42,2.8162342]
[1770809301985,11.98196954,81.449,81.41,2.8162342]
[1770809302285,11.98196954,81.449,81.42,2.8162342]
[1770809302686,11.98196954,81.449,81.41,2.8162342]
[1770809304083,11.98196954,81.449,81.4,2.8162342]
[1770809304784,11.98196954,81.449,81.41,2.8162342]
[1770809304979,11.98196954,81.449,81.4,2.8162342]
[1770809306784,12.00915167,81.439,81.39,2.8162342]
[1770809306978,12.00915167,81.439,81.38,2.8162342]
[1770809307178,12.00915167,81.439,81.39,2.8162342]
[1770809307779,12.00915167,81.439,81.4,2.8162342]
[1770809308684,12.00943878,81.455,81.363,11.041248]
[1770809308886,12.00943878,81.455,81.41,2.8162342]
[1770809309182,12.00943878,81.458,81.378,11.041248]
[1770809309382,12.00943878,81.458,81.41,2.8162342]
[1770809309686,12.00943878,81.458,81.4,2.8162342]
[1770809309888,12.01983025,81.449,81.365,11.041248]
[1770809310089,12.01983025,81.449,81.39,2.8162342]
[1770809310277,12.01983025,81.439,81.39,2.8162342]
[1770809310681,12.01983025,81.439,81.38,2.8162342]
[1770809310883,12.01983025,81.439,81.406,0.07758234]
[1770809318191,12.01983025,81.439,81.38,7.52183076]
[1770809319191,12.01983025,81.439,81.362,11.041248]
[1770809319799,12.01983025,81.439,81.36,7.52183076]
[1770809320000,12.01837786,81.437,81.36,7.52183076]
[1770809320293,12.01837786,81.435,81.346,11.041248]
[1770809320493,12.01837786,81.419,81.321,11.041248]
[1770809320692,12.01837786,81.417,81.32,18.56307876]
[1770809321090,12.01837786,81.415,81.333,11.041248]
[1770809321400,12.01837786,81.415,81.321,11.041248]
[1770809321599,12.01837786,81.415,81.323,11.041248]
[1770809322096,12.01750737,81.413,81.323,11.041248]
[1770809322396,12.3,81.478,81.32,7.52183076]
[1770809322397,12.01750737,81.411,81.331,11.041248]
[1770809322798,12.01750737,81.411,81.32,7.52183076]
[1770809322799,12.01750737,81.411,81.334,11.041248]
[1770809322999,12.01750737,81.411,81.333,11.041248]
[1770809323198,12.01750737,81.411,81.332,11.041248]
[1770809323405,12.01750737,81.411,81.333,11.041248]
[1770809323699,12.01750737,81.411,81.329,11.041248]
[1770809323888,98.02,81.418,81.325,11.041248]
[1770809323889,12.01750737,81.409,81.325,11.041248]
[1770809324089,12.01750737,81.409,81.324,11.041248]
[1770809324294,12.01750737,81.409,81.325,11.041248]
[1770809326394,12.01750737,81.409,81.327,11.041248]
[1770809327196,11.98928049,81.407,81.324,11.041248]
[1770809327400,11.98928049,81.407,81.325,11.041248]
[1770809327600,11.98928049,81.407,81.33,11.041248]
[1770809327802,11.98928049,81.407,81.331,11.041248]
[1770809328402,11.98928049,81.407,81.334,11.041248]
[1770809328800,11.98928049,81.407,81.336,11.041248]
[1770809329403,11.98928049,81.407,81.342,11.041248]
[1770809330005,11.98928049,81.407,81.334,11.041248]
[1770809330502,12.07399036,81.378,81.326,11.041248]
[1770809331296,12.07399036,81.378,81.33,11.041248]
[1770809331499,12.07399036,81.378,81.331,11.041248]
[1770809331703,12.07399036,81.378,81.333,11.041248]
[1770809332204,12.07399036,81.378,81.33,11.041248]
[1770809332407,12.07399036,81.378,81.332,11.041248]
[1770809332808,12.07399036,81.378,81.326,11.041248]
[1770809333009,12.07399036,81.378,81.33,2.8132275]
[1770809333610,12.07399036,81.378,81.33,13.8544755]
[1770809333917,12.07399036,81.378,81.34,2.8132275]
[1770809334098,12.07399036,81.378,81.321,14.8348867]
[1770809334099,12.07399036,81.378,81.35,2.8132275]
[1770809335009,0.07778363,81.372,81.35,2.8132275]
[1770809337608,0.07778363,81.372,81.35,2.81220038]
[1770809338613,0.07778363,81.372,81.343,11.041248]
[1770809338914,12.1766413,81.372,81.343,11.041248]
[1770809339112,12.1766413,81.372,81.301,29.9114416]
[1770809339113,12.1766413,81.372,81.34,2.81220038]
[1770809339613,12.1031108,81.386,81.35,2.81220038]
[1770809340110,12.1031108,81.386,81.36,2.81220038]
[1770809341005,12.1031108,81.386,81.36,2.81148612]
[1770809343206,12.11733554,81.399,81.36,2.81148612]
[1770809344619,12.11733554,81.399,81.357,11.041248]
[1770809345312,12.11733554,81.399,81.358,11.041248]
[1770809346522,12.11733554,81.399,81.356,11.041248]
[1770809347007,12.11733554,81.399,81.353,11.041248]
[1770809347207,12.14993393,81.411,81.37,2.81148612]
[1770809347407,12.14993393,81.409,81.366,11.041248]
[1770809347615,12.14993393,81.399,81.355,11.041248]
[1770809347812,12.14993393,81.399,81.352,11.041248]
[1770809348410,12.14993393,81.399,81.35,11.041248]
[1770809348615,12.14993393,81.399,81.354,11.041248]
[1770809349316,12.14993393,81.399,81.355,11.041248]
[1770809349812,12.14993393,81.399,81.36,11.041248]
[1770809351416,12.14993393,81.399,81.35,17.64637282]